bitfinex/quotes_BTCUSD_20250618
["timestamp","ask_amount","ask_price","bid_price","bid_amount"]
[1750256072960,0.22857005,105220.0,105210.0,0.22360928]
[1750256073168,0.23807376,105220.0,105210.0,0.22060928]
[1750256073372,5.06246,105220.0,105210.0,0.21110512]
[1750256073593,5.05289692,105220.0,105210.0,0.20910521]
[1750256073824,5.06240081,105220.0,105210.0,0.19960069]
[1750256074073,0.41862954,105200.0,105190.0,0.09990858]
[1750256074287,5.03456483,105200.0,105190.0,0.10004987]
[1750256074518,5.03456483,105200.0,105190.0,0.09410988]
[1750256074519,5.04343289,105200.0,105190.0,0.09410988]
[1750256074730,5.04343289,105200.0,105190.0,0.30325495]
[1750256074936,5.0434332,105200.0,105190.0,0.09410988]
[1750256075374,5.0444332,105200.0,105190.0,0.30325513]
[1750256075582,5.06642795,105200.0,105190.0,0.09410988]
[1750256076025,5.19266971,105200.0,105190.0,0.04639988]
[1750256076445,5.08755958,105200.0,105190.0,0.04639988]
[1750256076661,5.05755958,105200.0,105190.0,0.24603862]
[1750256076856,5.04805406,105200.0,105190.0,0.04639988]
[1750256077330,5.05450818,105200.0,105190.0,0.24603844]
[1750256077554,5.05450818,105200.0,105190.0,0.04639988]
[1750256078169,5.05450818,105200.0,105190.0,0.05590648]
[1750256078378,5.05450818,105200.0,105190.0,0.26505074]
[1750256078379,4.8548886,105200.0,105190.0,0.26505074]
[1750256078560,0.2294486,105200.0,105190.0,0.26505074]
[1750256078771,0.201,105200.0,105190.0,0.3612925]
[1750256078982,0.001,105200.0,105190.0,0.3612925]
[1750256079640,0.01050489,105200.0,105190.0,0.3612925]
[1750256079847,4.8549553,105200.0,105190.0,0.3612925]
[1750256080077,4.8549553,105200.0,105190.0,0.5996525]
[1750256080264,4.86446082,105200.0,105190.0,0.44677074]
[1750256080503,4.87396643,105200.0,105190.0,0.44677074]
[1750256080725,4.85495512,105200.0,105190.0,0.44677074]
[1750256080967,4.86446046,105200.0,105190.0,0.44677074]
[1750256081561,4.85495512,105200.0,105190.0,0.44677074]
[1750256081689,4.86446046,105200.0,105190.0,0.44677074]
[1750256082011,4.87396598,105200.0,105190.0,0.44677074]
[1750256082219,4.86446055,105200.0,105190.0,0.44677074]
[1750256082426,4.86446046,105200.0,105190.0,0.44677074]
[1750256082637,0.04277,105220.0,105210.0,0.02851329]
[1750256082873,0.01175827,105230.0,105220.0,0.19958173]
[1750256083096,3.35028826,105230.0,105220.0,0.35246349]
[1750256083333,0.002256,105230.0,105220.0,0.55311028]
[1750256084917,0.24741928,105230.0,105220.0,0.55311028]
[1750256085145,0.002256,105230.0,105220.0,0.55311028]
[1750256085598,0.002256,105230.0,105220.0,0.55911028]
[1750256086505,0.19802359,105250.0,105240.0,0.21854697]
[1750256086719,0.19802359,105250.0,105240.0,0.40014697]
[1750256086939,0.21702496,105250.0,105240.0,0.40014697]
[1750256087175,0.19802359,105250.0,105240.0,0.40014697]
[1750256087647,0.19849447,105250.0,105240.0,0.40014697]
[1750256087868,0.24280056,105250.0,105240.0,0.40014697]
[1750256088089,3.29657222,105230.0,105220.0,0.50589285]
[1750256088314,3.108049,105230.0,105220.0,0.49638968]
[1750256088548,0.0327,105230.0,105220.0,0.49638968]
[1750256088983,0.04270127,105240.0,105230.0,0.20906557]
[1750256089213,3.18315036,105240.0,105230.0,0.39054566]
[1750256089436,3.173649,105240.0,105230.0,0.40004829]
[1750256089660,3.18315045,105240.0,105230.0,0.20906575]
[1750256089875,3.173649,105240.0,105230.0,0.21856847]
[1750256090088,3.18315036,105240.0,105230.0,0.21856856]
[1750256090330,3.20105362,105240.0,105230.0,0.19005986]
[1750256090552,3.21055543,105240.0,105230.0,0.19005986]
[1750256090772,3.22005743,105240.0,105230.0,0.19005986]
[1750256091231,3.20105362,105240.0,105230.0,0.19005986]
[1750256091465,3.21055543,105240.0,105230.0,0.19005986]
[1750256091681,3.20105362,105240.0,105230.0,0.19005986]
[1750256091907,3.21055543,105240.0,105230.0,0.19005986]
[1750256092581,3.18785363,105230.0,105220.0,0.11051935]
[1750256092802,3.1878539,105230.0,105220.0,0.11051944]
[1750256093022,3.19735662,105230.0,105220.0,0.10101555]
[1750256093244,3.168849,105230.0,105220.0,0.11051944]
[1750256093469,3.18785381,105230.0,105220.0,0.10101555]
[1750256093920,3.138149,105230.0,105220.0,0.13052614]
[1750256094605,3.138149,105230.0,105220.0,0.13152614]
[1750256094876,3.108049,105230.0,105220.0,0.13152614]
[1750256095947,3.108049,105230.0,105220.0,0.13152623]
[1750256096171,3.170849,105230.0,105220.0,0.11251935]
[1750256096391,3.170849,105230.0,105220.0,0.13152659]
[1750256096834,3.19935635,105230.0,105220.0,0.10201555]
[1750256097017,3.18985363,105230.0,105220.0,0.11151944]
[1750256097236,3.19935626,105230.0,105220.0,0.10201555]
[1750256097698,3.40842183,105230.0,105220.0,0.10101555]
[1750256097924,3.20885961,105230.0,105220.0,0.10101555]
[1750256098144,3.39891947,105230.0,105220.0,0.10101555]
[1750256098366,3.39892001,105230.0,105220.0,0.06101555]
[1750256098601,3.18985435,105230.0,105220.0,0.06101555]
[1750256098815,3.19935725,105230.0,105220.0,0.06101555]
[1750256099040,3.3989201,105230.0,105220.0,0.06101555]
[1750256099255,3.20886024,105230.0,105220.0,0.05251555]
[1750256099493,0.21858879,105220.0,105210.0,0.19009599]
[1750256099718,0.00950416,105210.0,105200.0,0.19009785]
[1750256099948,3.3904581,105210.0,105200.0,0.14425785]
[1750256100182,0.01901023,105200.0,105190.0,0.17793874]
[1750256100433,3.39628451,105200.0,105190.0,0.19113214]
[1750256100669,3.19666475,105200.0,105190.0,0.19113214]
[1750256100905,3.16656475,105200.0,105190.0,0.21965086]
[1750256101126,3.13707136,105200.0,105190.0,0.21965086]
[1750256101360,0.22902236,105200.0,105190.0,0.55337262]
[1750256101602,0.02902236,105200.0,105190.0,0.55337262]
[1750256102058,0.02902236,105200.0,105190.0,0.58657262]
[1750256102279,8.949e-05,105200.0,105190.0,0.61907262]
[1750256102776,8.949e-05,105200.0,105190.0,0.61903262]
[1750256103220,8.949e-05,105200.0,105190.0,0.63357347]
[1750256104321,8.949e-05,105200.0,105190.0,0.63457347]
[1750256104543,8.949e-05,105200.0,105190.0,0.63657347]
[1750256104771,8.949e-05,105200.0,105190.0,0.68657347]
[1750256106171,0.2,105240.0,105230.0,0.19956276]
[1750256106398,3.00042435,105240.0,105230.0,0.21856847]
[1750256106624,2.91755127,105230.0,105220.0,0.19004714]
[1750256106845,2.939849,105230.0,105220.0,0.40918126]
[1750256107065,2.94935127,105230.0,105220.0,0.41868479]
[1750256107287,2.908049,105230.0,105220.0,0.51488655]
[1750256107498,2.9359948,105230.0,105220.0,0.51488655]
[1750256107721,0.0279458,105230.0,105220.0,0.57112655]
[1750256108164,2.90851982,105240.0,105230.0,0.21856775]
[1750256108379,0.21947354,105240.0,105230.0,0.21856775]
[1750256108828,0.20997209,105240.0,105230.0,0.21856775]
[1750256109288,0.00047082,105240.0,105230.0,0.21856775]
[1750256109513,0.00997209,105240.0,105230.0,0.21856775]
[1750256109739,0.00997209,105240.0,105220.0,0.19004714]
[1750256109740,2.95975435,105230.0,105220.0,0.19004714]
[1750256109974,0.28308852,105220.0,105210.0,0.08007329]
[1750256110260,2.96926157,105210.0,105200.0,0.26531271]
[1750256110488,0.25170805,105210.0,105200.0,0.21857778]
[1750256110722,0.25170805,105210.0,105200.0,0.19006176]
[1750256110941,3.1688628,105210.0,105200.0,0.19956737]
[1750256111168,3.2011628,105210.0,105200.0,0.20907289]
[1750256111383,3.2011628,105210.0,105200.0,0.19006176]
[1750256111598,3.2011628,105210.0,105200.0,0.19956728]
[1750256111851,3.18215439,105210.0,105200.0,0.19206176]
[1750256112066,3.20490777,105210.0,105200.0,0.20156746]
[1750256112298,3.18215439,105210.0,105200.0,0.21107298]
[1750256112525,3.21440831,105210.0,105200.0,0.21107307]
[1750256112772,3.20490397,105210.0,105200.0,0.002]
[1750256112993,3.19539936,105210.0,105200.0,0.002]
[1750256113246,3.19539936,105210.0,105200.0,0.003]
[1750256113247,3.29164112,105210.0,105200.0,0.003]
[1750256113476,0.23243865,105190.0,105180.0,0.14746017]
[1750256113706,2.98285479,105190.0,105180.0,0.12924892]
[1750256113929,3.01137306,105190.0,105180.0,0.31020892]
[1750256114383,3.02087948,105190.0,105180.0,0.31020892]
[1750256114601,2.973349,105190.0,105180.0,0.31020892]
[1750256114823,2.908049,105190.0,105180.0,0.31035021]
[1750256115040,2.92706121,105190.0,105180.0,0.31035021]
[1750256115281,2.93656754,105190.0,105180.0,0.31035021]
[1750256115487,2.908049,105190.0,105180.0,0.31035021]
[1750256115714,2.92706103,105190.0,105180.0,0.31031021]
[1750256115927,2.93656736,105190.0,105180.0,0.31031021]
[1750256116160,3.13620592,105190.0,105180.0,0.30080334]
[1750256116386,3.18029407,105190.0,105180.0,0.00014129]
[1750256116644,3.18029407,105190.0,105180.0,0.18106129]
[1750256117091,3.26875111,105190.0,105180.0,0.00014129]
[1750256117524,3.18029407,105190.0,105180.0,0.00014129]
[1750256117748,3.18029407,105190.0,105180.0,0.19979892]
[1750256117967,3.18029407,105190.0,105180.0,0.20930625]
[1750256118184,3.18029407,105190.0,105180.0,0.21881348]
[1750256118402,3.18029407,105190.0,105180.0,0.22832053]
[1750256118639,3.14819407,105190.0,105180.0,0.1902915]
[1750256118864,3.16928765,105190.0,105180.0,0.00014129]
[1750256119968,3.28825662,105190.0,105180.0,0.00014129]
[1750256120186,2.97808102,105170.0,105160.0,0.3836546]
[1750256120409,2.97808084,105170.0,105160.0,0.15613277]
[1750256120674,2.93657243,105170.0,105160.0,0.33697277]
[1750256120918,2.91755669,105170.0,105160.0,0.33697277]
[1750256121146,2.908049,105180.0,105170.0,0.21869244]
[1750256121366,2.94865497,105190.0,105180.0,0.20916459]
[1750256121590,3.17681252,105190.0,105180.0,0.20916459]
[1750256121812,2.97717378,105190.0,105180.0,0.21867146]
[1750256122030,2.91755497,105190.0,105180.0,0.55155322]
[1750256122268,2.91755479,105190.0,105180.0,0.55155322]
[1750256122492,2.92706103,105190.0,105180.0,0.55155322]
[1750256122720,3.11719371,105190.0,105170.0,0.21869172]
[1750256122935,0.45017155,105180.0,105170.0,0.24600829]
[1750256123185,3.14871368,105180.0,105170.0,0.4363167]
[1750256123404,2.93657342,105170.0,105160.0,0.37371478]
[1750256123624,2.9460812,105170.0,105160.0,0.38322346]
[1750256123855,3.13625003,105170.0,105160.0,8.949e-05]
[1750256124068,3.18093384,105170.0,105160.0,8.949e-05]
[1750256124295,3.18193384,105170.0,105160.0,8.949e-05]
[1750256124526,0.02852985,105150.0,105140.0,0.255621]
[1750256124764,5.2595094,105150.0,105140.0,0.20943228]
[1750256124980,0.02854686,105150.0,105140.0,0.46644448]
[1750256125209,5.11072406,105170.0,105160.0,0.21871323]
[1750256125425,5.12023238,105170.0,105160.0,0.2197135]
[1750256125646,5.31040067,105170.0,105160.0,0.21020455]
[1750256125900,5.32368484,105170.0,105160.0,0.001]
[1750256126126,5.34638398,105170.0,105160.0,0.001]
[1750256126578,0.06022694,105160.0,105150.0,0.23775385]
[1750256126792,5.09120877,105160.0,105150.0,0.23775385]
[1750256127010,5.15203526,105160.0,105150.0,0.21873449]
[1750256127244,5.12924448,105160.0,105150.0,0.21873449]
[1750256127488,5.30992281,105160.0,105150.0,0.22824426]
[1750256127703,5.11973643,105160.0,105150.0,0.22824426]
[1750256127930,5.33071395,105160.0,105150.0,0.10071459]
[1750256128166,5.09120877,105160.0,105150.0,0.11973404]
[1750256128379,5.07952631,105160.0,105150.0,0.11973404]
[1750256128592,5.08853477,105160.0,105150.0,0.11973404]
[1750256128817,5.27872115,105160.0,105150.0,0.11022445]
[1750256129035,5.11780701,105160.0,105150.0,0.11973404]
[1750256129240,5.3487027,105160.0,105150.0,0.11973422]
[1750256129465,5.09878866,105160.0,105150.0,0.22548557]
[1750256129722,5.07977157,105160.0,105150.0,0.22548557]
[1750256130162,5.10829815,105160.0,105150.0,0.22548557]
[1750256130384,5.10829815,105160.0,105150.0,0.40612557]
[1750256130606,5.10829815,105160.0,105150.0,0.22548557]
[1750256130829,0.20922427,105150.0,105140.0,0.265273]
[1750256131058,0.20922427,105150.0,105140.0,0.27478358]
[1750256131059,5.12754938,105150.0,105140.0,0.27478358]
[1750256131270,5.12755011,105150.0,105140.0,0.21894358]
[1750256131512,5.3082448,105150.0,105140.0,0.39007318]
[1750256131738,5.29873485,105150.0,105140.0,0.38998538]
[1750256131962,5.28922481,105150.0,105140.0,0.38043453]
[1750256132178,5.0495,105150.0,105140.0,0.39945578]
[1750256132401,5.06851927,105150.0,105140.0,0.21885578]
[1750256132610,5.08427312,105150.0,105140.0,0.39945578]
[1750256132832,5.06525385,105150.0,105140.0,0.21985578]
[1750256133758,5.06525385,105150.0,105140.0,0.31709754]
[1750256133983,5.06525385,105150.0,105140.0,0.55349754]
[1750256134210,0.01575385,105150.0,105140.0,0.55349754]
[1750256134651,5.13489023,105170.0,105160.0,0.20920473]
[1750256134865,5.32505852,105170.0,105160.0,0.21871386]
[1750256135091,5.1122237,105170.0,105160.0,0.22822254]
[1750256135313,5.11222379,105170.0,105160.0,0.21871386]
[1750256135735,5.10271565,105170.0,105160.0,0.22822263]
[1750256135960,5.06619833,105170.0,105160.0,0.41829131]
[1750256136185,0.01769833,105170.0,105160.0,0.51453307]
[1750256136626,0.04657974,105170.0,105160.0,0.51453307]
[1750256136847,0.002,105170.0,105160.0,0.51453307]
[1750256137072,0.01988123,105170.0,105160.0,0.51453307]
[1750256137328,0.004,105170.0,105160.0,0.51453307]
[1750256138431,0.004,105170.0,105160.0,0.57033307]
[1750256138873,0.004,105170.0,105160.0,0.60173307]
[1750256139090,0.004,105170.0,105160.0,0.63393307]
[1750256141112,0.004,105170.0,105160.0,0.33397307]
[1750256141330,0.004,105170.0,105160.0,0.57021307]
[1750256141545,0.0016,105170.0,105160.0,0.57021307]
[1750256142205,0.0016,105170.0,105160.0,0.33397307]
[1750256142429,5.10111574,105170.0,105160.0,0.22822263]
[1750256142645,5.3563812,105170.0,105160.0,0.19018638]
[1750256142864,0.04050904,105160.0,105150.0,0.27455802]
[1750256143081,5.13171615,105160.0,105150.0,0.4644277]
[1750256143317,5.14122483,105160.0,105150.0,0.45491802]
[1750256143545,5.11269762,105160.0,105150.0,0.47393729]
[1750256143997,5.12220648,105160.0,105150.0,0.45491802]
[1750256144206,5.13171561,105160.0,105150.0,0.38952834]
[1750256144427,5.16331561,105160.0,105150.0,0.19971468]
[1750256144667,0.00950949,105150.0,105140.0,0.2651852]
[1750256144913,5.25872354,105150.0,105140.0,0.25567453]
[1750256145207,5.32190034,105150.0,105140.0,0.20934538]
[1750256145460,5.42411489,105150.0,105140.0,0.00015362]
[1750256145697,5.36434207,105150.0,105140.0,0.00015362]
[1750256146172,5.36434207,105150.0,105140.0,0.20939815]
[1750256146444,5.36434207,105150.0,105140.0,0.1998873]
[1750256146665,5.36434207,105150.0,105140.0,0.2008873]
[1750256146883,5.36434207,105150.0,105140.0,0.1998873]
[1750256147367,5.36534207,105150.0,105140.0,0.1998873]
[1750256147596,5.36534207,105150.0,105140.0,0.21039833]
[1750256147843,5.33698071,105150.0,105140.0,0.21039833]
[1750256148057,5.32036133,105150.0,105140.0,0.21890927]
[1750256148527,5.37245184,105150.0,105140.0,0.21890927]
[1750256148763,5.36294207,105150.0,105140.0,0.21890927]
[1750256149019,5.36294207,105150.0,105140.0,0.00015362]
[1750256149251,5.36294207,105150.0,105140.0,0.19988712]
[1750256149481,5.39147219,105150.0,105140.0,0.21890855]
[1750256149736,5.13262757,105150.0,105140.0,0.22841904]
[1750256149954,5.09228584,105150.0,105140.0,0.22841904]
[1750256150181,5.30151029,105150.0,105140.0,0.20939797]
[1750256150411,5.11130574,105150.0,105140.0,0.22841913]
[1750256150870,5.09228575,105150.0,105140.0,0.22841913]
[1750256151110,5.1017957,105150.0,105140.0,0.22841913]
[1750256151344,5.11130556,105150.0,105140.0,0.22841913]
[1750256151623,5.36227111,105150.0,105140.0,0.20939788]
[1750256151836,5.37178124,105150.0,105140.0,0.22841913]
[1750256152061,5.10419552,105150.0,105140.0,0.23792962]
[1750256152281,5.12321551,105150.0,105140.0,0.23792962]
[1750256152497,5.30391092,105150.0,105140.0,0.20939788]
[1750256152980,5.30391092,105150.0,105140.0,0.00015362]
[1750256152981,5.34445229,105150.0,105140.0,0.00015362]
[1750256153429,0.1997335,105140.0,105130.0,0.4376577]
[1750256153672,0.22853771,105120.0,105110.0,0.19029266]
[1750256153901,5.03852686,105110.0,105100.0,0.08284818]
[1750256154125,5.06129288,105110.0,105100.0,0.09236292]
[1750256154346,5.08031993,105110.0,105100.0,0.09236292]
[1750256154564,5.10270627,105110.0,105100.0,0.09236292]
[1750256155034,5.12173414,105110.0,105100.0,0.09236292]
[1750256155274,0.03805725,105100.0,105090.0,0.33445579]
[1750256155502,5.08945725,105100.0,105090.0,0.34440271]
[1750256155715,5.29300529,105100.0,105090.0,0.1548477]
[1750256155935,5.28346802,105100.0,105090.0,0.1548477]
[1750256156157,5.28346802,105100.0,105090.0,0.00047137]
[1750256156158,5.39830797,105100.0,105090.0,0.00047137]
[1750256156366,5.39830797,105100.0,105090.0,0.20981564]
[1750256156581,5.39830797,105100.0,105090.0,0.21933102]
[1750256156799,5.30215875,105100.0,105090.0,0.21933102]
[1750256157017,5.32118724,105100.0,105090.0,0.22884631]
[1750256157250,5.34177304,105100.0,105090.0,0.20029999]
[1750256157461,5.34177304,105100.0,105080.0,0.28635859]
[1750256157462,0.23122862,105090.0,105080.0,0.28635859]
[1750256157677,5.28232862,105090.0,105080.0,0.09697712]
[1750256157896,5.28232862,105090.0,105080.0,0.19046589]
[1750256158119,5.28232862,105090.0,105080.0,0.00013472]
[1750256158340,5.24954772,105080.0,105070.0,0.18508291]
[1750256158565,5.24954772,105080.0,105070.0,0.19464717]
[1750256158799,5.33556485,105080.0,105070.0,0.1756127]
[1750256159021,5.36756485,105080.0,105070.0,0.00872433]
[1750256159314,0.00951809,105060.0,105050.0,0.33143988]
[1750256159549,0.01903899,105040.0,105030.0,0.19995782]
[1750256159786,5.08899364,105040.0,105030.0,0.2094789]
[1750256160011,5.25083848,105040.0,105030.0,0.0001]
[1750256160690,5.09153428,105040.0,105030.0,0.20004286]
[1750256160899,5.30097802,105040.0,105030.0,0.21898457]
[1750256161120,5.33914982,105040.0,105030.0,0.2285052]
[1750256161362,5.09575143,105040.0,105030.0,0.2285052]
[1750256161580,5.05115162,105040.0,105030.0,0.23802511]
[1750256161819,0.03165162,105040.0,105030.0,0.23802511]
[1750256162097,0.23165162,105040.0,105030.0,0.33426687]
[1750256162337,0.03165162,105040.0,105030.0,0.33426687]
[1750256162577,0.03165162,105040.0,105030.0,0.60112687]
[1750256162820,0.003,105040.0,105030.0,0.63362687]
[1750256163130,0.001,105040.0,105030.0,0.63362687]
[1750256163497,0.001,105040.0,105030.0,0.64816772]
[1750256163717,0.02872789,105060.0,105050.0,0.21894226]
[1750256163956,0.05350404,105060.0,105050.0,0.31518402]
[1750256164171,5.04822789,105060.0,105050.0,0.39894226]
[1750256164402,5.06726326,105060.0,105050.0,0.39894226]
[1750256164621,5.05774544,105060.0,105050.0,0.39894226]
[1750256164845,5.05774544,105060.0,105050.0,0.20942362]
[1750256164846,5.07678117,105060.0,105050.0,0.20942362]
[1750256165074,5.18244857,105060.0,105050.0,0.22094226]
[1750256165299,5.16341239,105060.0,105050.0,0.22094226]
[1750256165518,5.1824483,105060.0,105050.0,0.22094226]
[1750256165768,5.17293021,105060.0,105050.0,0.21142362]
[1750256165984,5.04822789,105060.0,105050.0,0.22094226]
[1750256166197,5.04822789,105060.0,105050.0,0.22294226]
[1750256166409,5.04822789,105060.0,105050.0,0.31918402]
[1750256166857,5.04822789,105060.0,105050.0,0.31718402]
[1750256167123,5.04822789,105060.0,105050.0,0.31518402]
[1750256167563,5.08202037,105060.0,105050.0,0.31518402]
[1750256167783,5.08202037,105060.0,105050.0,0.39890226]
[1750256168001,5.07250264,105060.0,105050.0,0.39890226]
[1750256168204,5.08202037,105060.0,105050.0,0.39890226]
[1750256168438,5.08202037,105060.0,105050.0,0.21894226]
[1750256168661,5.08202028,105060.0,105050.0,0.21894226]
[1750256168876,5.09153819,105060.0,105050.0,0.21894226]
[1750256169081,5.11057464,105060.0,105050.0,0.20942362]
[1750256169319,5.10105637,105060.0,105050.0,0.22846099]
[1750256169797,5.04822789,105060.0,105050.0,0.22846099]
[1750256170057,5.05774553,105060.0,105050.0,0.22846099]
[1750256170271,5.25763156,105060.0,105050.0,0.00951882]
[1750256170500,5.29854993,105060.0,105050.0,0.19038553]
[1750256170711,5.26032371,105050.0,105040.0,0.20942778]
[1750256170940,5.26032371,105050.0,105040.0,0.20596996]
[1750256171160,5.02901972,105040.0,105030.0,0.37986223]
[1750256171380,5.02901972,105040.0,105030.0,0.31434698]
[1750256171621,5.03853972,105040.0,105030.0,0.32386808]
[1750256171880,5.02901936,105040.0,105030.0,0.32386808]
[1750256172094,5.03853881,105040.0,105030.0,0.32386808]
[1750256172340,5.06709835,105040.0,105030.0,0.22762632]
[1750256172560,5.26896319,105040.0,105030.0,0.21810659]
[1750256172779,5.24992365,105040.0,105030.0,0.2085856]
[1750256172999,5.22896385,105030.0,105020.0,0.21900076]
[1750256173213,5.02902036,105030.0,105020.0,0.41709717]
[1750256173656,5.04806198,105030.0,105020.0,0.41709717]
[1750256173872,5.06710351,105030.0,105020.0,0.40757581]
[1750256174088,5.32487057,105030.0,105020.0,0.40757581]
[1750256174330,5.14396978,105030.0,105020.0,0.41709726]
[1750256174551,5.02902027,105030.0,105020.0,0.42661862]
[1750256174809,0.23806237,105040.0,105030.0,0.21898394]
[1750256175023,5.26708246,105040.0,105030.0,0.21811854]
[1750256175238,5.09928533,105040.0,105030.0,0.22763908]
[1750256175458,5.0710255,105040.0,105030.0,0.23715953]
[1750256175671,0.22891898,105040.0,105030.0,0.33340129]
[1750256176342,0.23091898,105040.0,105030.0,0.33340129]
[1750256176555,0.22991898,105040.0,105030.0,0.33340129]
[1750256176769,0.02991898,105040.0,105030.0,0.33340129]
[1750256176989,0.02991898,105040.0,105030.0,0.36540129]
[1750256177208,0.02891898,105040.0,105030.0,0.36540129]
[1750256177443,0.02891898,105040.0,105030.0,0.39600129]
[1750256177661,5.16124248,105060.0,105050.0,0.21894226]
[1750256177878,5.4382421,105060.0,105050.0,0.38930362]
[1750256178113,0.19990462,105050.0,105040.0,0.20942722]
[1750256178335,5.24201657,105050.0,105040.0,0.21808292]
[1750256178559,5.05163059,105050.0,105040.0,0.41700228]
[1750256178815,5.13826117,105050.0,105040.0,0.41700228]
[1750256179034,0.03824553,105060.0,105050.0,0.21894226]
[1750256179250,5.08037566,105060.0,105050.0,0.22759777]
[1750256179478,5.07085802,105060.0,105050.0,0.40009173]
[1750256179698,0.00014107,105060.0,105050.0,0.46369173]
[1750256179915,0.00014107,105060.0,105050.0,0.37878402]
[1750256180151,0.00014107,105060.0,105050.0,0.34758402]
[1750256180376,0.2662568,105120.0,105080.0,0.59363117]
[1750256180597,0.00014147,105120.0,105110.0,0.20930316]
[1750256180812,0.00014147,105120.0,105110.0,0.48538492]
[1750256181246,0.00014147,105120.0,105110.0,0.51738492]
[1750256181684,0.00014147,105120.0,105110.0,0.53192577]
[1750256181923,0.00014147,105120.0,105110.0,0.5803155]
[1750256182618,0.00014147,105120.0,105110.0,0.58700577]
[1750256182842,0.00014147,105120.0,105110.0,0.58978696]
[1750256183054,0.00114147,105120.0,105110.0,0.58978781]
[1750256183484,0.00014147,105120.0,105110.0,0.56078781]
[1750256183706,5.02915368,105120.0,105110.0,0.23914036]
[1750256183939,5.02915368,105120.0,105110.0,0.2057906]
[1750256183940,5.17974189,105120.0,105110.0,0.2057906]
[1750256184159,5.57521213,105120.0,105110.0,0.006]
[1750256184381,0.03805734,105100.0,105090.0,0.11463796]
[1750256184595,5.11219624,105100.0,105090.0,0.11463796]
[1750256184816,5.0421389,105100.0,105090.0,0.29664693]
[1750256185032,5.30827051,105120.0,105110.0,0.19979069]
[1750256185278,5.33092569,105120.0,105110.0,0.21881783]
[1750256185490,5.12164135,105120.0,105110.0,0.22833122]
[1750256185714,5.10283373,105120.0,105110.0,0.23784442]
[1750256185937,0.01902686,105110.0,105100.0,0.1998096]
[1750256186155,5.26097255,105110.0,105100.0,0.21883854]
[1750256186369,5.08020872,105110.0,105100.0,0.22835265]
[1750256186605,5.08020872,105110.0,105100.0,0.21883854]
[1750256186606,5.27048557,105110.0,105100.0,0.21883854]
[1750256186820,5.27048557,105110.0,105100.0,0.19980951]
[1750256186821,0.29645908,105110.0,105100.0,0.19980951]
[1750256187041,5.31795908,105110.0,105100.0,0.20932398]
[1750256187257,5.30844569,105110.0,105100.0,0.19980951]
[1750256187470,5.29893203,105110.0,105100.0,0.19980969]
[1750256187683,0.00951447,105100.0,105090.0,0.11463723]
[1750256187949,5.23833827,105100.0,105090.0,0.10512258]
[1750256188169,5.28397916,105100.0,105090.0,0.10512276]
[1750256188600,5.31627916,105100.0,105090.0,0.11463832]
[1750256188809,5.12598421,105100.0,105090.0,0.12415379]
[1750256189027,5.32579381,105100.0,105090.0,0.11463832]
[1750256189242,5.32579381,105100.0,105090.0,0.1241537]
[1750256189457,5.32579381,105100.0,105090.0,0.11463832]
[1750256189692,5.22884373,105090.0,105080.0,0.37005117]
[1750256189913,5.04804495,105090.0,105080.0,0.40811584]
[1750256190130,5.0195,105090.0,105080.0,0.3246376]
[1750256191044,0.00951501,105090.0,105080.0,0.20084763]
[1750256191269,5.26144391,105090.0,105080.0,0.20084772]
[1750256191486,5.09378407,105090.0,105080.0,0.22939629]
[1750256191706,0.02265377,105090.0,105080.0,0.22939629]
[1750256191958,5.2195,105090.0,105080.0,0.22939629]
[1750256192177,5.0195,105090.0,105080.0,0.22939629]
[1750256192606,5.02901402,105100.0,105090.0,0.21885892]
[1750256192813,5.08021356,105100.0,105090.0,0.39849892]
[1750256193062,5.35714425,105100.0,105090.0,0.19982862]
[1750256193314,0.02265631,105100.0,105090.0,0.39135288]
[1750256193589,5.0195,105110.0,105100.0,0.218838]
[1750256193800,5.04215584,105110.0,105100.0,0.22835211]
[1750256194029,5.0195,105110.0,105100.0,0.22835211]
[1750256194479,5.0195,105110.0,105100.0,0.32459387]
[1750256194940,5.0195,105110.0,105100.0,0.22835211]
[1750256195159,5.0195,105110.0,105100.0,0.40795211]
[1750256195380,5.0195,105110.0,105100.0,0.50419387]
[1750256195932,5.0205,105110.0,105100.0,0.50419387]
[1750256196203,0.001,105110.0,105100.0,0.50419387]
[1750256196747,0.003,105110.0,105100.0,0.50419387]
[1750256197226,0.203,105110.0,105100.0,0.50419387]
[1750256197878,0.003,105110.0,105100.0,0.50419387]
[1750256198095,0.203,105110.0,105100.0,0.50419387]
[1750256199045,0.22202631,105110.0,105100.0,0.32459387]
[1750256199262,0.22202622,105110.0,105100.0,0.50415387]
[1750256199467,0.23153961,105110.0,105100.0,0.50415387]
[1750256199684,0.22202622,105110.0,105100.0,0.50415387]
[1750256199888,0.21251302,105110.0,105100.0,0.50415387]
[1750256200527,0.203,105110.0,105100.0,0.50415387]
[1750256200734,0.2125132,105110.0,105100.0,0.50415387]
[1750256200946,0.21251311,105110.0,105100.0,0.50415387]
[1750256201381,0.203,105110.0,105100.0,0.50415387]
[1750256201602,0.02202631,105110.0,105100.0,0.50415387]
[1750256201826,0.24105354,105110.0,105100.0,0.218838]
[1750256202041,0.24105354,105110.0,105100.0,0.3888438]
[1750256202042,0.44084496,105110.0,105100.0,0.3888438]
[1750256202317,0.43133167,105110.0,105100.0,0.2093238]
[1750256202548,0.46303167,105110.0,105100.0,0.19980951]
[1750256202775,5.26350444,105110.0,105100.0,0.20932398]
[1750256202990,5.26350444,105110.0,105100.0,0.21883827]
[1750256203210,5.26350444,105110.0,105100.0,0.22835247]
[1750256203611,5.26350444,105110.0,105100.0,0.21883827]
[1750256203879,5.06371348,105110.0,105100.0,0.22835247]
[1750256204112,5.0225,105110.0,105100.0,0.33410834]
[1750256204351,0.203,105110.0,105100.0,0.33410834]
[1750256204583,0.003,105110.0,105100.0,0.33410834]
[1750256205094,0.0125132,105110.0,105100.0,0.33410834]
[1750256205349,0.003,105110.0,105100.0,0.33410834]
[1750256206425,0.203,105110.0,105100.0,0.33410834]
[1750256207054,0.01251302,105110.0,105100.0,0.33410834]
[1750256207268,0.003,105110.0,105100.0,0.33410834]
[1750256208147,0.003,105110.0,105100.0,0.41034919]
[1750256208370,0.003,105110.0,105100.0,1.02894919]
[1750256208600,0.003,105110.0,105100.0,1.4472239]
[1750256208811,0.00014147,105120.0,105110.0,0.55881728]
[1750256209042,0.00014147,105120.0,105110.0,0.71675904]
[1750256209263,0.00014147,105120.0,105110.0,0.79301124]
[1750256210177,0.19934147,105150.0,105140.0,0.21875484]
[1750256210395,5.018842,105160.0,105150.0,0.21873404]
[1750256210618,5.04204916,105160.0,105150.0,0.3149758]
[1750256210836,0.00047137,105160.0,105150.0,0.3149758]
[1750256211063,0.00047137,105160.0,105150.0,0.32951665]
[1750256211293,0.00047137,105160.0,105150.0,0.39321665]
[1750256211738,0.00047137,105160.0,105150.0,0.80946885]
[1750256211959,0.00047137,105160.0,105150.0,0.98886885]
[1750256212391,0.00047137,105160.0,105150.0,0.98986885]
[1750256212851,0.00047137,105160.0,105150.0,1.21742885]
[1750256213282,0.00047137,105160.0,105150.0,1.22142885]
[1750256213754,0.00047137,105160.0,105150.0,0.36601665]